fUSD/lending_fUSD_20241210
["ID","MTS","AMOUNT","RATE_DAILY","PERIOD"]
[344837443,1733823042955,-226377.11246475,0.000111,2]
[344837444,1733823042966,-1573353.1574679,0.000111,2]
[344837445,1733823043295,-500.0,0.00010958,2]
[344837446,1733823043304,-274.6985844,0.000111,2]
[344837447,1733823043315,-1009.71667059,0.000111,2]
[344837448,1733823043330,-384.644286,0.000111,2]
[344837449,1733823043341,-973.22396863,0.000111,2]
[344837450,1733823043362,-301.92197159,0.000111,2]
[344837451,1733823043383,-2428.32769813,0.000111,2]
[344837452,1733823043394,-312.3160075,0.000111,2]
[344837453,1733823043735,-500.0,0.00010958,2]
[344837454,1733823043745,-384.644286,0.00011099,2]
[344837455,1733823043755,-389816.37265626,0.000111,2]
[344837456,1733823043768,-2478.100625,0.000111,2]
[344837457,1733823043790,-250.0,0.00010754,2]
[344837458,1733823043800,-246.58688895,0.000111,2]
[344837459,1733823043821,-97549.99999992,0.000111,2]
[344837464,1733823045615,-355.85,0.00010812,2]
[344837465,1733823045624,-500.0,0.00011099,2]
[344837466,1733823045633,-8903.25,0.000111,2]
[344837467,1733823045734,-42107.37195,0.000111,2]
[344837468,1733823045806,-195300.43393378,0.000111,2]
[344837469,1733823045818,-1339.99658246,0.000111,2]
[344837470,1733823045932,-225.24162229,0.00010958,2]
[344837471,1733823045941,-889.90837771,0.000111,2]
[344837483,1733823718375,1278.54,0.00016658,30]
[344837487,1733823934531,600.16,8.223e-05,2]
[344837488,1733824052781,400.0,0.0001,2]
[344837497,1733824164609,400.0,0.0001,2]
[344837498,1733824171823,3778.62580245,0.0001,2]
[344837515,1733824231900,-345.63,9.959e-05,2]
[344837516,1733824231910,-185.42,9.96e-05,2]
[344837517,1733824231919,-6663.90470166,0.0001,2]
[344837518,1733824231929,-167.91,0.00010002,2]
[344837519,1733824231938,-1000.0,0.00010025,2]
[344837520,1733824231947,-250.0,0.00010051,2]
[344837521,1733824231957,-1500.0,0.0001008,2]
[344837522,1733824231967,-9091.0,0.00010208,2]
[344837523,1733824231976,-243.39,0.00010209,2]
[344837524,1733824231985,-200.0,0.00010241,2]
[344837525,1733824231995,-250.0,0.00010295,2]
[344837526,1733824232004,-200.0,0.0001042,2]
[344837527,1733824232013,-600.16,0.00010486,2]
[344837528,1733824232023,-654.37,0.00010534,2]
[344837529,1733824232032,-314.481,0.0001055,2]
[344837530,1733824232042,-500.0,0.00010795,2]
[344837531,1733824232051,-150.0,0.00010957,2]
[344837532,1733824232061,-505.1106607,0.00010958,2]
[344837533,1733824232070,-503.68436083,0.00010958,2]
[344837534,1733824232079,-502.46184117,0.00010958,2]
[344837535,1733824232089,-502.03200082,0.00010958,2]
[344837536,1733824232098,-500.0,0.00010958,2]
[344837537,1733824232107,-500.0,0.00010958,2]
[344837538,1733824232116,-505.48308191,0.00010958,2]
[344837539,1733824232127,-502.46499272,0.00010958,2]
[344837540,1733824232136,-500.0,0.00010958,2]
[344837541,1733824232145,-500.0,0.00010958,2]
[344837542,1733824232155,-500.0,0.00010958,2]
[344837543,1733824232164,-500.0,0.00010958,2]
[344837544,1733824232173,-500.0,0.00010958,2]
[344837545,1733824232182,-500.0,0.00010958,2]
[344837546,1733824232191,-500.0,0.00010958,2]
[344837547,1733824232201,-373.56719195,0.00010958,2]
[344837548,1733824232210,-559.02,0.00010958,2]
[344837549,1733824232219,-250.61177746,0.00010958,2]
[344837550,1733824232228,-500.0,0.00010958,2]
[344837551,1733824232237,-500.0,0.00010958,2]
[344837552,1733824232247,-291.22176361,0.00010958,2]
[344837553,1733824232256,-500.0,0.00010958,2]
[344837554,1733824232266,-500.0,0.00010958,2]
[344837555,1733824232274,-500.0,0.00010958,2]
[344837556,1733824232284,-500.0,0.00010958,2]
[344837557,1733824232293,-500.0,0.00010958,2]
[344837558,1733824232302,-500.0,0.00010958,2]
[344837559,1733824232311,-500.0,0.00010958,2]
[344837560,1733824232321,-299.14,0.00010958,2]
[344837561,1733824232330,-500.0,0.00010958,2]
[344837563,1733824232339,-500.0,0.00010958,2]
[344837566,1733824232351,-500.0,0.00010958,2]
[344837569,1733824232360,-500.0,0.00010958,2]
[344837572,1733824232370,-500.0,0.00010958,2]
[344837574,1733824232380,-508.04068755,0.00010958,2]
[344837576,1733824232389,-500.0,0.00010958,2]
[344837578,1733824232399,-500.0,0.00010958,2]
[344837580,1733824232408,-500.0,0.00010958,2]
[344837582,1733824232418,-500.0,0.00010958,2]
[344837584,1733824232427,-500.0,0.00010958,2]
[344837586,1733824232436,-500.0,0.00010958,2]
[344837588,1733824232444,-500.0,0.00010958,2]
[344837590,1733824232454,-409.1367444,0.00010958,2]
[344837592,1733824232463,-500.0,0.00010958,2]
[344837594,1733824232472,-500.0,0.00010958,2]
[344837595,1733824232481,-500.0,0.00010958,2]
[344837597,1733824232490,-276.67162571,0.00010958,2]
[344837599,1733824232501,-500.0,0.00010958,2]
[344837600,1733824232511,-501.48335967,0.00010958,2]
[344837602,1733824232520,-500.0,0.00010958,2]
[344837604,1733824232529,-500.0,0.00010958,2]
[344837606,1733824232538,-500.0,0.00010958,2]
[344837608,1733824232547,-500.0,0.00010958,2]
[344837610,1733824232557,-500.0,0.00010958,2]
[344837612,1733824232566,-500.0,0.00010958,2]
[344837614,1733824232576,-500.0,0.00010958,2]
[344837616,1733824232586,-500.0,0.00010958,2]
[344837618,1733824232595,-500.0,0.00010958,2]
[344837620,1733824232605,-500.0,0.00010958,2]
[344837622,1733824232614,-629.51365129,0.00010958,2]
[344837624,1733824232626,-297.97094168,0.00010971,2]
[344837626,1733824232635,-297.97094168,0.00010973,2]
[344837629,1733824232645,-297.97094168,0.00010981,2]
[344837630,1733824232654,-297.97094168,0.00010989,2]
[344837633,1733824232664,-3000.0,0.0001099,2]
[344837635,1733824232674,-297.97094168,0.00010992,2]
[344837637,1733824232683,-297.97094168,0.00010992,2]
[344837638,1733824232692,-1196.385,0.00010994,2]
[344837640,1733824232701,-16691.59105456,0.0001107,2]
[344837644,1733824232726,-18108.65319267,0.0001107,2]
[344837646,1733824232736,-905.59839347,0.0001107,2]
[344838083,1733824242931,-2805.55502661,0.0001107,2]
[344838084,1733824242943,-3581.53123498,0.0001107,2]
[344838085,1733824243054,-781.27465,0.0001107,2]
[344838086,1733824243116,-543.50360851,0.0001107,2]
[344838096,1733824245728,-11700.03969705,0.0001107,2]
[344838097,1733824245857,-21883.44099191,0.0001107,2]
[344838098,1733824245867,-159.791776,0.00011073,2]
[344838099,1733824245876,-15597.07,0.0001109,2]
[344838100,1733824245888,-500.0,0.00011098,2]
[344838101,1733824245898,-500.0,0.00011098,2]
[344838102,1733824245907,-500.0,0.00011098,2]
[344838103,1733824245917,-506.7745984,0.00011098,2]
[344838104,1733824245927,-473.31938273,0.00011098,2]
[344838105,1733824245937,-500.0,0.00011098,2]
[344838106,1733824245947,-517.6721,0.00011099,2]
[344838107,1733824245956,-500.0,0.00011099,2]
[344838108,1733824245967,-500.0,0.00011099,2]
[344838109,1733824245976,-500.0,0.00011099,2]
[344838110,1733824245986,-245.63,0.00011099,2]
[344838111,1733824245995,-500.0,0.00011099,2]
[344838112,1733824246005,-500.0,0.00011099,2]
[344838113,1733824246015,-287.22146212,0.00011099,2]
[344838114,1733824246025,-500.0,0.00011099,2]
[344838115,1733824246034,-500.0,0.00011099,2]
[344838116,1733824246044,-500.0,0.00011099,2]
[344838117,1733824246054,-500.0,0.00011099,2]
[344838118,1733824246064,-500.0,0.00011099,2]
[344838119,1733824246074,-500.0,0.00011099,2]
[344838120,1733824246083,-500.0,0.00011099,2]
[344838121,1733824246093,-500.0,0.00011099,2]
[344838122,1733824246103,-500.0,0.00011099,2]
[344838123,1733824246112,-500.0,0.00011099,2]
[344838124,1733824246122,-500.0,0.00011099,2]
[344838125,1733824246134,-500.0,0.00011099,2]
[344838126,1733824246143,-500.0,0.00011099,2]
[344838127,1733824246152,-500.0,0.00011099,2]
[344838128,1733824246162,-500.0,0.00011099,2]
[344838129,1733824246171,-500.0,0.00011099,2]
[344838130,1733824246181,-500.0,0.00011099,2]
[344838131,1733824246190,-500.0,0.00011099,2]
[344838132,1733824246200,-389.51707812,0.00011099,2]
[344838133,1733824246209,-500.0,0.00011099,2]
[344838134,1733824246219,-500.0,0.00011099,2]
[344838135,1733824246228,-500.0,0.00011099,2]
[344838136,1733824246237,-500.0,0.00011099,2]
[344838137,1733824246246,-500.0,0.00011099,2]
[344838138,1733824246255,-500.0,0.00011099,2]
[344838139,1733824246265,-360.92,0.00011099,2]
[344838140,1733824246275,-500.0,0.00011099,2]
[344838141,1733824246284,-500.0,0.00011099,2]
[344838142,1733824246294,-500.0,0.00011099,2]
[344838143,1733824246303,-210.16350165,0.00011099,2]
[344838144,1733824246312,-500.0,0.00011099,2]
[344838145,1733824246322,-500.0,0.00011099,2]
[344838146,1733824246331,-500.0,0.00011099,2]
[344838147,1733824246341,-500.0,0.00011099,2]
[344838148,1733824246352,-500.0,0.00011099,2]
[344838149,1733824246364,-500.0,0.00011099,2]
[344838150,1733824246373,-500.0,0.00011099,2]
[344838151,1733824246386,-500.0,0.00011099,2]
[344838152,1733824246396,-500.0,0.00011099,2]
[344838153,1733824246405,-500.0,0.00011099,2]
[344838154,1733824246415,-500.0,0.00011099,2]
[344838155,1733824246425,-500.0,0.00011099,2]
[344838156,1733824246440,-500.0,0.00011099,2]
[344838157,1733824246451,-500.0,0.00011099,2]
[344838158,1733824246461,-500.0,0.00011099,2]
[344838159,1733824246470,-500.0,0.00011099,2]
[344838160,1733824246479,-456.66,0.00011099,2]
[344838161,1733824246488,-500.0,0.00011099,2]
[344838162,1733824246497,-500.0,0.00011099,2]
[344838163,1733824246507,-500.0,0.00011099,2]
[344838164,1733824246516,-555.44,0.00011099,2]
[344838165,1733824246525,-510.21649714,0.00011099,2]
[344838166,1733824246534,-524.42914541,0.00011099,2]
[344838167,1733824246543,-500.0,0.00011099,2]
[344838168,1733824246552,-500.0,0.00011099,2]
[344838169,1733824246561,-500.0,0.00011099,2]
[344838170,1733824246570,-500.0,0.00011099,2]
[344838171,1733824246580,-500.0,0.00011099,2]
[344838172,1733824246590,-500.0,0.00011099,2]
[344838173,1733824246599,-500.0,0.00011099,2]
[344838174,1733824246608,-500.0,0.00011099,2]
[344838175,1733824246618,-500.0,0.00011099,2]
[344838176,1733824246627,-500.0,0.00011099,2]
[344838177,1733824246638,-500.0,0.00011099,2]
[344838178,1733824246647,-500.0,0.00011099,2]
[344838179,1733824246656,-389.16,0.00011099,2]
[344838180,1733824246666,-500.0,0.00011099,2]
[344838181,1733824246675,-500.0,0.00011099,2]
[344838182,1733824246684,-500.0,0.00011099,2]
[344838183,1733824246693,-500.0,0.00011099,2]
[344838184,1733824246702,-251.30004658,0.00011099,2]
[344838185,1733824246711,-500.0,0.00011099,2]
[344838186,1733824246720,-500.0,0.00011099,2]
[344838187,1733824246729,-500.0,0.00011099,2]
[344838188,1733824246739,-500.0,0.00011099,2]
[344838189,1733824246748,-500.0,0.00011099,2]
[344838190,1733824246757,-500.0,0.00011099,2]
[344838191,1733824246766,-500.0,0.00011099,2]
[344838192,1733824246775,-500.0,0.00011099,2]
[344838193,1733824246784,-339.13,0.00011099,2]
[344838194,1733824246793,-500.0,0.00011099,2]
[344838195,1733824246803,-500.0,0.00011099,2]
[344838196,1733824246812,-500.0,0.00011099,2]
[344838197,1733824246821,-500.0,0.00011099,2]
[344838198,1733824246831,-500.0,0.00011099,2]
[344838199,1733824246840,-500.0,0.00011099,2]
[344838200,1733824246849,-500.0,0.00011099,2]
[344838201,1733824246858,-500.0,0.00011099,2]
[344838202,1733824246867,-500.0,0.00011099,2]
[344838203,1733824246876,-500.0,0.00011099,2]
[344838204,1733824246886,-500.0,0.00011099,2]
[344838205,1733824246896,-500.0,0.00011099,2]
[344838206,1733824246905,-500.0,0.00011099,2]
[344838207,1733824246915,-500.0,0.00011099,2]
[344838208,1733824246924,-500.0,0.00011099,2]
[344838209,1733824246933,-500.0,0.00011099,2]
[344838210,1733824246943,-500.0,0.00011099,2]
[344838211,1733824246952,-500.0,0.00011099,2]
[344838212,1733824246961,-1000.0,0.00011099,2]
[344838213,1733824246971,-500.0,0.00011099,2]
[344838214,1733824246980,-500.0,0.00011099,2]
[344838215,1733824246990,-500.0,0.00011099,2]
[344838216,1733824246999,-249.88,0.00011099,2]
[344838217,1733824247009,-500.0,0.00011099,2]
[344838218,1733824247018,-500.0,0.00011099,2]
[344838219,1733824247028,-500.0,0.00011099,2]
[344838220,1733824247037,-500.0,0.00011099,2]
[344838221,1733824247046,-500.0,0.00011099,2]
[344838222,1733824247055,-500.0,0.00011099,2]
[344838223,1733824247064,-500.0,0.00011099,2]
[344838224,1733824247073,-500.0,0.00011099,2]
[344838225,1733824247082,-623.27045973,0.00011099,2]
[344838226,1733824247092,-500.0,0.00011099,2]
[344838227,1733824247101,-500.0,0.00011099,2]
[344838228,1733824247110,-500.0,0.00011099,2]
[344838229,1733824247119,-500.0,0.00011099,2]
[344838230,1733824247129,-500.0,0.00011099,2]
[344838231,1733824247139,-500.0,0.00011099,2]
[344838232,1733824247148,-500.0,0.00011099,2]
[344838233,1733824247157,-500.0,0.00011099,2]
[344838234,1733824247166,-500.0,0.00011099,2]
[344838235,1733824247176,-190.0,0.00011099,2]
[344838236,1733824247185,-500.0,0.00011099,2]
[344838237,1733824247194,-500.0,0.00011099,2]
[344838238,1733824247203,-500.0,0.00011099,2]
[344838239,1733824247212,-500.0,0.00011099,2]
[344838240,1733824247226,-500.0,0.00011099,2]
[344838241,1733824247240,-500.0,0.00011099,2]
[344838242,1733824247249,-500.0,0.00011099,2]
[344838243,1733824247258,-500.0,0.00011099,2]
[344838244,1733824247267,-500.0,0.00011099,2]
[344838245,1733824247276,-500.0,0.00011099,2]
[344838246,1733824247285,-500.0,0.00011099,2]
[344838247,1733824247294,-500.0,0.00011099,2]
[344838248,1733824247303,-500.0,0.00011099,2]
[344838249,1733824247312,-500.0,0.00011099,2]
[344838250,1733824247321,-500.0,0.00011099,2]
[344838251,1733824247330,-500.0,0.00011099,2]
[344838252,1733824247339,-500.0,0.00011099,2]
[344838253,1733824247349,-314.21,0.00011099,2]
[344838254,1733824247362,-500.0,0.00011099,2]
[344838255,1733824247371,-500.0,0.00011099,2]
[344838256,1733824247384,-500.0,0.00011099,2]
[344838257,1733824247394,-500.0,0.00011099,2]
[344838258,1733824247403,-500.0,0.00011099,2]
[344838259,1733824247412,-500.0,0.00011099,2]
[344838260,1733824247422,-500.0,0.00011099,2]
[344838261,1733824247431,-500.0,0.00011099,2]
[344838262,1733824247441,-546.84,0.00011099,2]
[344838263,1733824247453,-263.42695731,0.00011099,2]
[344838264,1733824247467,-500.0,0.00011099,2]
[344838265,1733824247476,-500.0,0.00011099,2]
[344838266,1733824247486,-500.0,0.00011099,2]
[344838267,1733824247495,-500.0,0.00011099,2]
[344838268,1733824247505,-500.0,0.00011099,2]
[344838269,1733824247515,-500.0,0.00011099,2]
[344838270,1733824247524,-500.0,0.00011099,2]
[344838271,1733824247535,-500.0,0.00011099,2]
[344838272,1733824247550,-500.0,0.00011099,2]
[344838273,1733824247560,-500.0,0.00011099,2]
[344838274,1733824247570,-500.0,0.00011099,2]
[344838275,1733824247580,-476.94,0.00011099,2]
[344838276,1733824247590,-500.0,0.00011099,2]
[344838277,1733824247600,-500.0,0.00011099,2]
[344838278,1733824247610,-368.64,0.00011099,2]
[344838279,1733824247619,-496.15871636,0.00011099,2]
[344838280,1733824247633,-526.43795002,0.00011099,2]
[344838281,1733824247643,-500.0,0.00011099,2]
[344838282,1733824247653,-500.0,0.00011099,2]
[344838283,1733824247662,-626.16,0.00011099,2]
[344838284,1733824247672,-626.16,0.00011099,2]
[344838285,1733824247687,-626.16,0.00011099,2]
[344838286,1733824247697,-626.16,0.00011099,2]
[344838287,1733824247708,-626.16,0.00011099,2]
[344838288,1733824247718,-626.16,0.00011099,2]
[344838289,1733824247728,-626.16,0.00011099,2]
[344838290,1733824247739,-626.16,0.00011099,2]
[344838291,1733824247749,-626.16,0.00011099,2]
[344838292,1733824247759,-626.16,0.00011099,2]
[344838293,1733824247769,-626.16,0.00011099,2]
[344838294,1733824247780,-626.16,0.00011099,2]
[344838295,1733824247789,-626.16,0.00011099,2]
[344838296,1733824247800,-626.16,0.00011099,2]
[344838297,1733824247810,-626.16,0.00011099,2]
[344838298,1733824247820,-626.16,0.00011099,2]
[344838299,1733824247830,-626.16,0.00011099,2]
[344838300,1733824247840,-626.16,0.00011099,2]
[344838301,1733824247851,-626.16,0.00011099,2]
[344838302,1733824247861,-626.16,0.00011099,2]
[344838303,1733824247871,-626.16,0.00011099,2]
[344838304,1733824247886,-626.16,0.00011099,2]
[344838305,1733824247897,-626.16,0.00011099,2]
[344838306,1733824247907,-626.34,0.00011099,2]
[344838307,1733824247917,-500.0,0.00011099,2]
[344838308,1733824247927,-500.0,0.00011099,2]
[344838309,1733824247938,-500.0,0.00011099,2]
[344838310,1733824247948,-500.0,0.00011099,2]
[344838311,1733824247958,-504.65605183,0.00011099,2]
[344838312,1733824247969,-500.0,0.00011099,2]
[344838313,1733824247979,-500.0,0.00011099,2]
[344838314,1733824247988,-500.0,0.00011099,2]
[344838315,1733824247998,-251.43236918,0.00011099,2]
[344838316,1733824248009,-500.0,0.00011099,2]
[344838317,1733824248019,-500.0,0.00011099,2]
[344838318,1733824248029,-500.0,0.00011099,2]
[344838319,1733824248039,-500.0,0.00011099,2]
[344838320,1733824248049,-500.0,0.00011099,2]
[344838321,1733824248059,-500.0,0.00011099,2]
[344838322,1733824248069,-500.0,0.00011099,2]
[344838323,1733824248078,-500.0,0.00011099,2]
[344838324,1733824248088,-500.84994307,0.00011099,2]
[344838325,1733824248098,-266.3,0.00011099,2]
[344838326,1733824248108,-502.50622155,0.00011099,2]
[344838327,1733824248118,-500.0,0.00011099,2]
[344838328,1733824248128,-500.0,0.00011099,2]
[344838329,1733824248145,-231.92,0.00011099,2]
[344838330,1733824248154,-633.41,0.00011099,2]
[344838331,1733824248163,-500.0,0.00011099,2]
[344838332,1733824248172,-500.0,0.00011099,2]
[344838333,1733824248182,-500.0,0.00011099,2]
[344838334,1733824248192,-500.0,0.00011099,2]
[344838335,1733824248200,-500.0,0.00011099,2]
[344838336,1733824248209,-500.0,0.00011099,2]
[344838337,1733824248218,-500.0,0.00011099,2]
[344838338,1733824248228,-500.0,0.00011099,2]
[344838339,1733824248238,-500.0,0.00011099,2]
[344838340,1733824248247,-500.0,0.00011099,2]
[344838341,1733824248257,-500.0,0.00011099,2]
[344838342,1733824248267,-500.0,0.00011099,2]
[344838343,1733824248277,-1036.0,0.00011099,2]
[344838344,1733824248287,-1000.0,0.000111,2]
[344838345,1733824248297,-1000.0,0.000111,3]
[344838346,1733824248306,-1000.0,0.000111,4]
[344838347,1733824248316,-1000.0,0.000111,5]
[344838348,1733824248326,-127771.24475071,0.000111,2]
[344838349,1733824565061,1214.61,0.00016658,30]
[344838356,1733825432096,-584.41,8.5e-05,2]
[344838357,1733825432107,-300.0,9.999e-05,2]
[344838358,1733825432118,-400.0,0.0001,2]
[344838359,1733825432130,-356.00786084,0.0001,2]
[344838361,1733825432348,-43.99213916,0.0001,2]
[344838363,1733825432359,-400.0,0.0001,2]
[344838365,1733825432370,-400.0,0.0001,2]
[344838367,1733825432381,-400.0,0.0001,2]
[344838368,1733825432391,-400.0,0.0001,2]
[344838369,1733825432401,-400.0,0.0001,2]
[344838370,1733825432412,-400.0,0.0001,2]
[344838371,1733825432422,-380.0,0.0001,2]
[344838372,1733825432432,-185.42,0.00010102,2]
[344838373,1733825432443,-633.32320432,0.00010156,2]
[344838374,1733825436067,2185.61350829,8.5e-05,7]
[344838376,1733825438042,-90.16679568,0.00010156,2]
[344838377,1733825438053,-15662.0,0.00010276,2]
[344838378,1733825438065,-1000.0,0.00010301,2]
[344838379,1733825438076,-730.48,0.00010336,2]
[344838380,1733825438085,-165.89,0.00010461,2]
[344838381,1733825438095,-250.0,0.00010466,2]
[344838382,1733825438104,-308.16,0.0001055,2]
[344838383,1733825438114,-200.0,0.00010635,2]
[344838384,1733825438123,-584.41,0.00010764,2]
[344838385,1733825438133,-150.0,0.00010852,2]
[344838386,1733825438143,-185.868368,0.00010958,2]
[344838387,1733825438152,-185.868368,0.00010958,2]
[344838388,1733825438162,-150.843182,0.00010958,2]
[344838389,1733825438509,-150.0,0.00010998,2]
[344838390,1733825438532,-2500.0,0.00010999,2]
[344838391,1733825438542,-335.0,0.00010999,2]
[344838392,1733825438552,-509.005,0.00011,2]
[344838393,1733825438561,-400.0,0.00011,2]
[344838394,1733825438573,-159.791776,0.00011073,2]
[344838395,1733825438583,-1258.332,0.00011098,2]
[344838396,1733825438592,-500.0,0.00011098,2]
[344838397,1733825438601,-500.0,0.00011098,2]
[344838398,1733825438611,-500.0,0.00011098,2]
[344838399,1733825438620,-502.37458489,0.00011098,2]
[344838400,1733825438629,-500.0,0.00011098,2]
[344838401,1733825438639,-500.0,0.00011098,2]
[344838402,1733825438649,-500.0,0.00011098,2]
[344838403,1733825438659,-500.0,0.00011098,2]
[344838404,1733825438668,-504.56607302,0.00011098,2]
[344838405,1733825438678,-500.0,0.00011098,2]
[344838406,1733825438687,-500.0,0.00011098,2]
[344838407,1733825438697,-500.0,0.00011098,2]
[344838408,1733825438706,-500.0,0.00011098,2]
[344838409,1733825438715,-500.0,0.00011098,2]
[344838410,1733825438725,-500.0,0.00011098,2]
[344838411,1733825438734,-500.0,0.00011098,2]
[344838412,1733825438743,-500.0,0.00011098,2]
[344838413,1733825438752,-281.1,0.00011098,2]
[344838414,1733825438762,-502.96624811,0.00011098,2]
[344838415,1733825438771,-334.41577954,0.00011098,2]
[344838416,1733825438784,-502.09995345,0.00011098,2]
[344838417,1733825438794,-500.0,0.00011098,2]
[344838418,1733825438803,-500.0,0.00011098,2]
[344838419,1733825438816,-500.0,0.00011098,2]
[344838420,1733825438825,-505.25004803,0.00011098,2]
[344838421,1733825438835,-500.0,0.00011098,2]
[344838422,1733825438844,-500.0,0.00011098,2]
[344838423,1733825438855,-441.33029582,0.00011098,2]
[344838424,1733825438864,-500.0,0.00011098,2]
[344838425,1733825438875,-500.0,0.00011098,2]
[344838426,1733825438884,-500.0,0.00011098,2]
[344838427,1733825438893,-500.0,0.00011098,2]
[344838428,1733825438903,-594.45,0.00011098,2]
[344838429,1733825438913,-500.0,0.00011098,2]
[344838430,1733825438922,-500.0,0.00011098,2]
[344838431,1733825438932,-500.0,0.00011098,2]
[344838432,1733825438941,-500.0,0.00011098,2]
[344838433,1733825438951,-500.0,0.00011098,2]
[344838434,1733825438961,-500.0,0.00011098,2]
[344838435,1733825438970,-500.0,0.00011098,2]
[344838436,1733825438979,-263.98,0.00011098,2]
[344838437,1733825438989,-500.0,0.00011098,2]
[344838438,1733825438998,-500.0,0.00011098,2]
[344838439,1733825439008,-500.0,0.00011098,2]
[344838440,1733825439017,-500.0,0.00011098,2]
[344838441,1733825439027,-500.0,0.00011098,2]
[344838442,1733825439036,-500.0,0.00011098,2]
[344838443,1733825439045,-500.0,0.00011098,2]
[344838444,1733825439055,-500.0,0.00011098,2]
[344838445,1733825439065,-222.74,0.00011098,2]
[344838446,1733825439075,-500.0,0.00011098,2]
[344838447,1733825439084,-184.05,0.00011098,2]
[344838448,1733825439093,-500.0,0.00011098,2]
[344838449,1733825439103,-181.90699301,0.00011098,2]
[344838450,1733825439127,-318.09300699,0.00011098,2]
[344838451,1733825439137,-500.0,0.00011098,2]
[344838452,1733825439147,-500.0,0.00011098,2]
[344838453,1733825439157,-500.0,0.00011098,2]
[344838454,1733825439167,-500.0,0.00011098,2]
[344838455,1733825439176,-323.0872736,0.00011098,2]
[344838456,1733825439185,-500.0,0.00011098,2]
[344838457,1733825439195,-500.0,0.00011098,2]
[344838458,1733825439204,-500.0,0.00011098,2]
[344838459,1733825439214,-517.61,0.00011098,2]
[344838460,1733825439223,-500.0,0.00011098,2]
[344838461,1733825439233,-500.0,0.00011098,2]
[344838462,1733825439242,-500.0,0.00011098,2]
[344838463,1733825439252,-500.0,0.00011098,2]
[344838464,1733825439261,-500.0,0.00011098,2]
[344838465,1733825439271,-167.76841815,0.00011098,2]
[344838466,1733825439280,-500.0,0.00011098,2]
[344838467,1733825439290,-500.0,0.00011098,2]
[344838468,1733825439299,-500.0,0.00011098,2]
[344838469,1733825439309,-500.0,0.00011098,2]
[344838470,1733825439321,-199.68,0.00011098,2]
[344838471,1733825439330,-150.0,0.00011098,2]
[344838472,1733825439339,-201.77049553,0.00011098,3]
[344838473,1733825439349,-500.0,0.00011098,2]
[344838474,1733825439358,-467.13038955,0.00011098,2]
[344838475,1733825439370,-32.86961045,0.00011098,2]
[344838476,1733825439379,-361.2761454,0.00011098,2]
[344838477,1733825439390,-138.7238546,0.00011098,2]
[344838478,1733825439399,-500.0,0.00011098,2]
[344838479,1733825439408,-500.0,0.00011098,2]
[344838480,1733825439418,-500.0,0.00011098,2]
[344838481,1733825439427,-500.0,0.00011098,2]
[344838482,1733825439436,-250.21656209,0.00011098,2]
[344838483,1733825439447,-249.78343791,0.00011098,2]
[344838484,1733825439457,-502.47301803,0.00011098,2]